fUSD/lending_fUSD_20240828
["ID","MTS","AMOUNT","RATE_DAILY","PERIOD"]
[336501896,1724884978733,-2921.42,0.0003863,120]
[336501897,1724884978766,-500.0,0.0003863,120]
[336501898,1724884978799,-1484.18,0.0003863,120]
[336501899,1724884978830,-1000.55,0.0003863,120]
[336501900,1724884978863,-2187.2,0.0003863,120]
[336501901,1724884978902,-500.0,0.0003863,120]
[336501902,1724884978939,-1801.84,0.0003863,120]
[336501903,1724884978975,-500.0,0.0003863,120]
[336501904,1724884979010,-657.58,0.0003863,120]
[336501905,1724884979045,-616.08,0.0003863,120]
[336501906,1724884979084,-17332.0,0.0003863,120]
[336501907,1724884979344,-1454.75,0.0003863,120]
[336501908,1724884979388,-3322.66,0.0003863,120]
[336501909,1724884979435,-500.0,0.0003863,120]
[336501910,1724884979471,-500.0,0.0003863,120]
[336501911,1724884979516,-500.0,0.0003863,120]
[336501912,1724884979556,-2100.79,0.0003863,120]
[336501913,1724884979592,-500.0,0.0003863,120]
[336501914,1724884979627,-500.0,0.0003863,120]
[336501915,1724884979662,-3286.5,0.0003863,120]
[336501916,1724884979696,-500.0,0.0003863,120]
[336501917,1724884979729,-500.0,0.0003863,120]
[336501918,1724884979763,-500.0,0.0003863,120]
[336501919,1724884979798,-500.0,0.0003863,120]
[336501920,1724884979833,-500.0,0.0003863,120]
[336501921,1724884979868,-655.43,0.0003863,120]
[336501922,1724884979905,-2872.95,0.0003863,120]
[336501923,1724884979940,-2302.75,0.0003863,120]
[336501924,1724884979974,-618.26,0.0003863,120]
[336501925,1724884980008,-668.42,0.0003863,120]
[336501926,1724884980045,-500.0,0.0003863,120]
[336501927,1724884980083,-263.02699407,0.0003863,120]
[336501928,1724884980117,-589.65,0.0003863,120]
[336501929,1724884980152,-2099.03,0.0003863,120]
[336501930,1724884980191,-506.2545477,0.0003863,120]
[336501931,1724884980227,-2960.21,0.0003863,120]
[336501932,1724884980261,-500.0,0.0003863,120]
[336501933,1724884980297,-4396.79,0.0003863,120]
[336501934,1724884980333,-593.94,0.0003863,120]
[336501935,1724884980369,-883.0,0.0003863,120]
[336501936,1724884980406,-500.0,0.0003863,120]
[336501937,1724884980450,-500.0,0.0003863,120]
[336501938,1724884980487,-1729.26,0.0003863,120]
[336501939,1724884980522,-775.08,0.0003863,120]
[336501940,1724884980557,-1436.8,0.0003863,120]
[336501941,1724884980594,-1369.56,0.0003863,120]
[336501942,1724884980629,-500.0,0.0003863,120]
[336501943,1724884980664,-1595.19,0.0003863,120]
[336501944,1724884980699,-1724.07,0.0003863,120]
[336501945,1724884980732,-500.0,0.0003863,120]
[336501946,1724884980764,-3045.35,0.0003863,120]
[336501947,1724884980796,-1773.01,0.0003863,120]
[336501948,1724884980830,-699.75,0.0003863,120]
[336501949,1724884980861,-500.0,0.0003863,120]
[336501950,1724884980893,-721.43,0.0003863,120]
[336501951,1724884980931,-2134.71,0.0003863,120]
[336501952,1724884980965,-500.0,0.0003863,120]
[336501953,1724884980998,-585.47,0.0003863,120]
[336501954,1724884981031,-500.0,0.0003863,120]
[336501955,1724884981075,-895.91,0.0003863,120]
[336501956,1724884981107,-1174.82,0.0003863,120]
[336501957,1724884981138,-659.85,0.0003863,120]
[336501958,1724884981171,-2224.97,0.0003863,120]
[336501959,1724884981203,-5186.12,0.0003863,120]
[336501960,1724884981236,-657.62,0.0003863,120]
[336501961,1724884981268,-1447.73,0.0003863,120]
[336501962,1724884981307,-2609.9,0.0003863,120]
[336501963,1724884981337,-1198.48,0.0003863,120]
[336501964,1724884981368,-1267.24,0.0003863,120]
[336501965,1724884981398,-979.34,0.0003863,120]
[336501966,1724884981429,-2181.47,0.0003863,120]
[336501967,1724884981460,-500.0,0.0003863,120]
[336501968,1724884981492,-2580.18,0.0003863,120]
[336501969,1724884981524,-500.0,0.0003863,120]
[336501970,1724884981568,-500.0,0.0003863,120]
[336501971,1724884981601,-3517.69,0.0003863,120]
[336501972,1724884981633,-1782.4,0.0003863,120]
[336501973,1724884981667,-798.91,0.0003863,120]
[336501974,1724884981699,-2629.56,0.0003863,120]
[336501975,1724884981733,-500.0,0.0003863,120]
[336501976,1724884981764,-500.0,0.0003863,120]
[336501977,1724884981797,-2119.26,0.0003863,120]
[336501978,1724884981831,-560.94,0.0003863,120]
[336501979,1724884981868,-2185.21,0.0003863,120]
[336501980,1724884981905,-500.0,0.0003863,120]
[336501981,1724884981943,-500.0,0.0003863,120]
[336501982,1724884981981,-1243.83,0.0003863,120]
[336501983,1724884982018,-2887.18,0.0003863,120]
[336501984,1724884982059,-2570.86,0.0003863,120]
[336501985,1724884982095,-500.0,0.0003863,120]
[336501986,1724884982130,-500.0,0.0003863,120]
[336501987,1724884982161,-500.0,0.0003863,120]
[336501988,1724884982195,-500.0,0.0003863,120]
[336501989,1724884982227,-500.0,0.0003863,120]
[336501990,1724884982262,-1168.64,0.0003863,120]
[336501991,1724884982295,-215.71991041,0.0003863,120]
[336501992,1724884982327,-595.19,0.0003863,120]
[336501993,1724884982358,-500.0,0.0003863,120]
[336501994,1724884982389,-509.66,0.0003863,120]
[336501995,1724884982422,-2251.96,0.0003863,120]
[336501996,1724884982456,-1079.75,0.0003863,120]
[336501997,1724884982488,-987.94,0.0003863,120]
[336501998,1724884982521,-6286.38,0.0003863,120]
[336501999,1724884982559,-500.0,0.0003863,120]
[336502000,1724884982595,-959.62,0.0003863,120]
[336502001,1724884982628,-500.0,0.0003863,120]
[336502002,1724884982662,-2125.79,0.0003863,120]
[336502003,1724884982696,-3373.42,0.0003863,120]
[336502004,1724884982728,-500.0,0.0003863,120]
[336502005,1724884982760,-500.0,0.0003863,120]
[336502006,1724884982796,-626.06,0.0003863,120]
[336502007,1724884982827,-861.0,0.0003863,120]
[336502008,1724884982858,-500.0,0.0003863,120]
[336502009,1724884982893,-1927.55,0.0003863,120]
[336502010,1724884983164,-6914.62,0.0003863,120]
[336502011,1724884983201,-500.0,0.0003863,120]
[336502012,1724884983237,-3347.76,0.0003863,120]
[336502013,1724884983278,-3048.83,0.0003863,120]
[336502014,1724884983316,-908.93,0.0003863,120]
[336502015,1724884983354,-181.38986431,0.0003863,120]
[336502016,1724884983389,-4335.53,0.0003863,120]
[336502017,1724884983425,-733.36,0.0003863,120]
[336502018,1724884983461,-500.0,0.0003863,120]
[336502019,1724884983501,-715.9,0.0003863,120]
[336502020,1724884983539,-750.43,0.0003863,120]
[336502021,1724884983575,-500.0,0.0003863,120]
[336502022,1724884983612,-500.0,0.0003863,120]
[336502023,1724884983649,-1047.3,0.0003863,120]
[336502024,1724884983688,-5740.57,0.0003863,120]
[336502025,1724884983730,-1797.01,0.0003863,120]
[336502026,1724884983769,-2094.86,0.0003863,120]
[336502027,1724884983808,-582.75,0.0003863,120]
[336502028,1724884983848,-1420.67,0.0003863,120]
[336502029,1724884983891,-500.0,0.0003863,120]
[336502030,1724884983931,-670.44,0.0003863,120]
[336502031,1724884983974,-1362.13,0.0003863,120]
[336502032,1724884984015,-1379.04,0.0003863,120]
[336502033,1724884984058,-500.0,0.0003863,120]
[336502034,1724884984098,-500.0,0.0003863,120]
[336502035,1724884984136,-1349.27,0.0003863,120]
[336502036,1724884984175,-500.0,0.0003863,120]
[336502037,1724884984215,-1334.43,0.0003863,120]
[336502038,1724884984254,-1564.42,0.0003863,120]
[336502039,1724884984298,-5020.86,0.0003863,120]
[336502040,1724884984338,-822.87,0.0003863,120]
[336502041,1724884984378,-500.0,0.0003863,120]
[336502042,1724884984423,-1022.85,0.0003863,120]
[336502043,1724884984463,-976.33,0.0003863,120]
[336502044,1724884984508,-656.65,0.0003863,120]
[336502045,1724884984551,-500.0,0.0003863,120]
[336502046,1724884984588,-500.0,0.0003863,120]
[336502047,1724884984626,-2066.86,0.0003863,120]
[336502048,1724884984669,-500.0,0.0003863,120]
[336502049,1724884984713,-500.0,0.0003863,120]
[336502050,1724884984760,-904.47,0.0003863,120]
[336502051,1724884984799,-150.0,0.0003877,120]
[336502052,1724884984836,-7317.76970125,0.0003887,120]
[336502053,1724884984874,-519.09424775,0.00038904,120]
[336502054,1724884984912,-500.0,0.00038904,120]
[336502055,1724884984950,-500.0,0.00038904,120]
[336502056,1724884984988,-500.0,0.00038904,120]
[336502057,1724884985026,-500.0,0.00038904,120]
[336502058,1724884985066,-500.0,0.00038904,120]
[336502059,1724884985103,-500.0,0.00038904,120]
[336502060,1724884985139,-500.0,0.00038904,120]
[336502061,1724884985175,-500.0,0.00038904,120]
[336502062,1724884985211,-500.0,0.00038904,120]
[336502063,1724884985245,-500.0,0.00038904,120]
[336502064,1724884985278,-500.0,0.00038904,120]
[336502065,1724884985313,-500.0,0.00038904,120]
[336502066,1724884985347,-500.0,0.00038904,120]
[336502067,1724884985381,-500.0,0.00038904,120]
[336502068,1724884985417,-526.17916119,0.00038904,120]
[336502069,1724884985452,-500.0,0.00038904,120]
[336502070,1724884985489,-500.0,0.00038904,120]
[336502071,1724884985526,-221.09465903,0.00038904,120]
[336502072,1724884985564,-500.0,0.00038904,120]
[336502073,1724884985602,-500.0,0.00038904,120]
[336502074,1724884985644,-500.0,0.00038904,120]
[336502075,1724884985680,-500.0,0.00038904,120]
[336502076,1724884985716,-500.0,0.00038904,120]
[336502077,1724884985751,-500.0,0.00038904,120]
[336502078,1724884985791,-500.0,0.00038904,120]
[336502079,1724884985828,-500.0,0.00038904,120]
[336502080,1724884985865,-500.0,0.00038904,120]
[336502081,1724884985906,-500.0,0.00038904,120]
[336502082,1724884985945,-500.0,0.00038904,120]
[336502083,1724884985987,-500.0,0.00038904,120]
[336502084,1724884986028,-500.0,0.00038904,120]
[336502085,1724884986073,-500.0,0.00038904,120]
[336502086,1724884986119,-500.0,0.00038904,120]
[336502087,1724884986158,-218.81726013,0.00038904,120]
[336502088,1724884986196,-500.0,0.00038904,120]
[336502089,1724884986234,-500.0,0.00038904,120]
[336502090,1724884986271,-500.0,0.00038904,120]
[336502091,1724884986308,-224.39577792,0.00038904,120]
[336502092,1724884986344,-500.0,0.00038904,120]
[336502093,1724884986381,-500.0,0.00038904,120]
[336502094,1724884986416,-500.0,0.00038904,120]
[336502095,1724884986452,-500.0,0.00038904,120]
[336502096,1724884986488,-500.0,0.00038904,120]
[336502097,1724884986523,-697.73,0.00038904,120]
[336502098,1724884986561,-500.0,0.00038904,120]
[336502099,1724884986596,-500.0,0.00038904,120]
[336502100,1724884986632,-500.0,0.00038904,120]
[336502101,1724884986669,-500.0,0.00038904,120]
[336502102,1724884986706,-500.0,0.00038904,120]
[336502103,1724884986745,-500.0,0.00038904,120]
[336502104,1724884986781,-500.0,0.00038904,120]
[336502105,1724884986819,-500.0,0.00038904,120]
[336502106,1724884986854,-500.0,0.00038904,120]
[336502107,1724884986891,-850.13,0.00038904,120]
[336502108,1724884986933,-589.55,0.00038904,120]
[336502109,1724884986972,-500.0,0.00038904,120]
[336502110,1724884987013,-500.0,0.00038904,120]
[336502111,1724884987048,-500.0,0.00038904,120]
[336502112,1724884987085,-509.91,0.00038904,120]
[336502113,1724884987120,-1465.96,0.00038904,120]
[336502114,1724884987369,-500.0,0.00038904,120]
[336502115,1724884987408,-533.93,0.00038904,120]
[336502116,1724884987445,-2694.72,0.00038904,120]
[336502117,1724884987480,-595.08,0.00038904,120]
[336502118,1724884987515,-584.88590485,0.00038904,120]
[336502119,1724884987558,-500.0,0.00038904,120]
[336502120,1724884987593,-500.0,0.00038904,120]
[336502121,1724884987630,-500.0,0.00038904,120]
[336502122,1724884987670,-1838.96,0.00038904,120]
[336502123,1724884987708,-500.0,0.00038904,120]
[336502124,1724884987751,-500.0,0.00038904,120]
[336502125,1724884987788,-500.0,0.00038904,120]
[336502126,1724884987829,-385.31107198,0.00038904,120]
[336502127,1724884987868,-500.0,0.00038904,120]
[336502128,1724884987910,-238.2000179,0.00038904,120]
[336502129,1724884987948,-500.0,0.00038904,120]
[336502130,1724884987988,-500.0,0.00038904,120]
[336502131,1724884988025,-500.0,0.00038904,120]
[336502132,1724884988064,-1044.81,0.00038904,120]
[336502133,1724884988101,-500.0,0.00038904,120]
[336502134,1724884988138,-2158.9,0.00038904,120]
[336502135,1724884988172,-500.0,0.00038904,120]
[336502136,1724884988207,-500.0,0.00038904,120]
[336502137,1724884988241,-500.0,0.00038904,120]
[336502138,1724884988273,-550.43,0.00038904,120]
[336502139,1724884988307,-474.6623337,0.00038904,120]
[336502140,1724884988340,-666.55,0.00038904,120]
[336502141,1724884988374,-500.0,0.00038904,120]
[336502142,1724884988407,-500.0,0.00038904,120]
[336502143,1724884988443,-500.0,0.00038904,120]
[336502144,1724884988479,-729.47,0.00038904,120]
[336502145,1724884988518,-500.0,0.00038904,120]
[336502146,1724884988554,-500.0,0.00038904,120]
[336502147,1724884988589,-663.48,0.00038904,120]
[336502148,1724884988626,-558.52,0.00038904,120]
[336502149,1724884988661,-500.0,0.00038904,120]
[336502150,1724884988696,-512.21,0.00038904,120]
[336502151,1724884988731,-3349.64,0.00038904,120]
[336502152,1724884988770,-732.03,0.00038904,120]
[336502153,1724884988807,-500.0,0.00038904,120]
[336502154,1724884988844,-1265.92,0.00038904,120]
[336502155,1724884988880,-526.94266595,0.00038904,120]
[336502156,1724884988923,-500.0,0.00038904,120]
[336502157,1724884988961,-500.0,0.00038904,120]
[336502158,1724884988997,-212.91575937,0.00038904,120]
[336502159,1724884989034,-1077.58,0.00038904,120]
[336502160,1724884989071,-502.74820976,0.00038904,120]
[336502161,1724884989106,-541.67,0.00038904,120]
[336502162,1724884989141,-500.0,0.00038904,120]
[336502163,1724884989178,-785.25,0.00038904,120]
[336502164,1724884989216,-500.0,0.00038904,120]
[336502165,1724884989254,-500.0,0.00038904,120]
[336502166,1724884989291,-500.0,0.00038904,120]
[336502167,1724884989327,-500.0,0.00038904,120]
[336502168,1724884989365,-500.0,0.00038904,120]
[336502169,1724884989403,-990.08,0.00038904,120]
[336502170,1724884989439,-500.0,0.00038904,120]
[336502171,1724884989475,-500.0,0.00038904,120]
[336502172,1724884989514,-500.0,0.00038904,120]
[336502173,1724884989551,-500.0,0.00038904,120]
[336502174,1724884989587,-2000.0,0.00038904,120]
[336502175,1724884989624,-500.0,0.00038904,120]
[336502176,1724884989661,-523.9,0.00038904,120]
[336502177,1724884989697,-1500.0,0.00038904,120]
[336502178,1724884989734,-816.26,0.00038904,120]
[336502179,1724884989771,-644.19799139,0.00038904,120]
[336502180,1724884989810,-1457.14,0.00038904,120]
[336502181,1724884989849,-1856.99,0.00038904,120]
[336502182,1724884989888,-1051.77,0.00038904,120]
[336502183,1724884989936,-500.0,0.00038904,120]
[336502184,1724884989974,-500.0,0.00038904,120]
[336502185,1724884990012,-500.0,0.00038904,120]
[336502186,1724884990048,-952.58,0.00038904,120]
[336502187,1724884990084,-1626.11,0.00038904,120]
[336502188,1724884990119,-500.0,0.00038904,120]
[336502189,1724884990154,-500.0,0.00038904,120]
[336502190,1724884990205,-1554.93,0.00038904,120]
[336502191,1724884990240,-766.82,0.00038904,120]
[336502192,1724884990275,-500.0,0.00038904,120]
[336502193,1724884990310,-500.0,0.00038904,120]
[336502194,1724884990344,-500.0,0.00038904,120]
[336502195,1724884990378,-1534.0,0.00038904,120]
[336502196,1724884990412,-744.59,0.00038904,120]
[336502197,1724884990447,-1886.64,0.00038904,120]
[336502198,1724884990485,-500.0,0.00038904,120]
[336502199,1724884990520,-1133.11,0.00038904,120]
[336502200,1724884990553,-500.0,0.00038904,120]
[336502201,1724884990589,-500.0,0.00038904,120]
[336502202,1724884990628,-500.0,0.00038904,120]
[336502203,1724884990665,-500.0,0.00038904,120]
[336502204,1724884990699,-500.0,0.00038904,120]
[336502205,1724884990735,-500.0,0.00038904,120]
[336502206,1724884990771,-500.0,0.00038904,120]
[336502207,1724884990808,-655.22,0.00038904,120]
[336502208,1724884990844,-507.38,0.00038904,120]
[336502209,1724884990877,-1294.17,0.00038904,120]
[336502210,1724884990912,-1911.62,0.00038904,120]
[336502211,1724884990949,-639.89,0.00038904,120]
[336502212,1724884990985,-500.0,0.00038904,120]
[336502213,1724884991021,-500.0,0.00038904,120]
[336502214,1724884991059,-2257.58,0.00038904,120]
[336502215,1724884991095,-500.0,0.00038904,120]
[336502216,1724884991129,-500.0,0.00038904,120]
[336502217,1724884991166,-500.0,0.00038904,120]
[336502218,1724884991420,-1925.3,0.00038904,120]
[336502219,1724884991457,-500.0,0.00038904,120]
[336502220,1724884991495,-500.0,0.00038904,120]
[336502221,1724884991531,-500.0,0.00038904,120]
[336502222,1724884991579,-1162.55,0.00038904,120]
[336502223,1724884991617,-732.63,0.00038904,120]
[336502224,1724884991655,-703.93,0.00038904,120]
[336502225,1724884991691,-500.0,0.00038904,120]
[336502226,1724884991728,-500.0,0.00038904,120]
[336502227,1724884991766,-500.0,0.00038904,120]
[336502228,1724884991804,-500.0,0.00038904,120]
[336502229,1724884991842,-1621.27,0.00038904,120]
[336502230,1724884991880,-665.7,0.00038904,120]
[336502231,1724884991918,-500.0,0.00038904,120]
[336502232,1724884991954,-1040.14,0.00038904,120]
[336502233,1724884991992,-500.0,0.00038904,120]
[336502234,1724884992030,-500.0,0.00038904,120]
[336502235,1724884992068,-500.0,0.00038904,120]
[336502236,1724884992105,-500.0,0.00038904,120]
[336502237,1724884992142,-1280.06,0.00038904,120]
[336502238,1724884992180,-1132.55,0.00038904,120]
[336502239,1724884992216,-500.0,0.00038904,120]
[336502240,1724884992253,-500.0,0.00038904,120]
[336502241,1724884992289,-1637.12,0.00038904,120]
[336502242,1724884992327,-500.0,0.00038904,120]
[336502243,1724884992363,-500.0,0.00038904,120]
[336502244,1724884992399,-500.0,0.00038904,120]
[336502245,1724884992434,-1891.29,0.00038904,120]
[336502246,1724884992467,-500.0,0.00038904,120]
[336502247,1724884992500,-500.0,0.00038904,120]
[336502248,1724884992534,-500.0,0.00038904,120]
[336502249,1724884992569,-1890.25,0.00038904,120]
[336502250,1724884992602,-500.0,0.00038904,120]
[336502251,1724884992638,-500.0,0.00038904,120]
[336502252,1724884992671,-500.0,0.00038904,120]
[336502253,1724884992705,-500.0,0.00038904,120]
[336502254,1724884992737,-500.0,0.00038904,120]
[336502255,1724884992775,-3518.22,0.00038904,120]
[336502256,1724884992811,-1436.48,0.00038904,120]
[336502257,1724884992849,-1232.49,0.00038904,120]
[336502258,1724884992885,-500.0,0.00038904,120]
[336502259,1724884992932,-1971.42,0.00038904,120]
[336502260,1724884992974,-500.0,0.00038904,120]
[336502261,1724884993014,-3418.0,0.00038904,120]
[336502262,1724884993052,-830.32,0.00038904,120]
[336502263,1724884993093,-500.0,0.00038904,120]
[336502264,1724884993130,-500.0,0.00038904,120]
[336502265,1724884993166,-500.0,0.00038904,120]
[336502266,1724884993202,-500.0,0.00038904,120]
[336502267,1724884993236,-1152.38,0.00038904,120]
[336502268,1724884993270,-500.0,0.00038904,120]
[336502269,1724884993305,-500.0,0.00038904,120]
[336502270,1724884993340,-5252.56,0.00038904,120]
[336502271,1724884993376,-500.0,0.00038904,120]
[336502272,1724884993411,-535.14,0.00038904,120]
[336502273,1724884993447,-500.0,0.00038904,120]
[336502274,1724884993482,-1560.58,0.00038904,120]
[336502275,1724884993519,-3538.12,0.00038904,120]
[336502276,1724884993555,-3808.09,0.00038904,120]
[336502277,1724884993591,-500.0,0.00038904,120]
[336502278,1724884993627,-4823.74,0.00038904,120]
[336502279,1724884993663,-501.60307052,0.00038904,120]
[336502280,1724884993700,-638.03484253,0.00038904,120]
[336502281,1724884993736,-1202.28,0.00038904,120]
[336502282,1724884993771,-2893.43,0.00038904,120]
[336502283,1724884993806,-500.0,0.00038904,120]
[336502284,1724884993842,-500.0,0.00038904,120]
[336502285,1724884993877,-1131.39,0.00038904,120]
[336502286,1724884993915,-1482.28,0.00038904,120]
[336502287,1724884993953,-500.0,0.00038904,120]
[336502288,1724884993992,-500.0,0.00038904,120]
[336502289,1724884994029,-500.0,0.00038904,120]
[336502290,1724884994065,-500.0,0.00038904,120]
[336502291,1724884994101,-664.91,0.00038904,120]
[336502292,1724884994138,-3596.41,0.00038904,120]
[336502293,1724884994176,-597.55,0.00038904,120]
[336502294,1724884994213,-603.95,0.00038904,120]
[336502295,1724884994249,-1236.34,0.00038904,120]
[336502296,1724884994286,-682.55,0.00038904,120]
[336502297,1724884994324,-684.68,0.00038904,120]
[336502298,1724884994361,-771.76,0.00038904,120]
[336502299,1724884994399,-500.0,0.00038904,120]
[336502300,1724884994436,-1674.34,0.00038904,120]
[336502301,1724884994474,-2752.83,0.00038904,120]
[336502302,1724884994515,-586.87,0.00038904,120]
[336502303,1724884994555,-784.83,0.00038904,120]
[336502304,1724884994598,-1117.6,0.00038904,120]
[336502305,1724884994638,-500.0,0.00038904,120]
[336502306,1724884994675,-500.0,0.00038904,120]
[336502307,1724884994713,-956.56,0.00038904,120]
[336502308,1724884994751,-573.85,0.00038904,120]
[336502309,1724884994791,-500.0,0.00038904,120]
[336502310,1724884994836,-500.0,0.00038904,120]
[336502311,1724884994882,-854.66,0.00038904,120]
[336502312,1724884994920,-1734.98,0.00038904,120]
[336502313,1724884994960,-4295.77,0.00038904,120]
[336502314,1724884994997,-668.17,0.00038904,120]
[336502315,1724884995036,-1716.27,0.00038904,120]
[336502316,1724884995075,-1114.77,0.00038904,120]
[336502317,1724884995113,-493.72813474,0.00038904,120]
[336502318,1724884995147,-477.81692416,0.00038904,120]
[336502319,1724884995185,-1826.65,0.00038904,120]
[336502320,1724884995230,-500.0,0.00038904,120]
[336502321,1724884995268,-4644.44,0.00038904,120]
[336502322,1724884995526,-2014.95,0.00038904,120]
[336502323,1724884995562,-500.0,0.00038904,120]
[336502324,1724884995598,-512.91,0.00038904,120]
[336502325,1724884995634,-538.35,0.00038904,120]
[336502326,1724884995670,-1484.8,0.00038904,120]
[336502327,1724884995708,-500.0,0.00038904,120]
[336502328,1724884995744,-523.63,0.00038904,120]
[336502329,1724884995784,-548.63,0.00038904,120]
[336502330,1724884995824,-1377.32,0.00038904,120]
[336502331,1724884995862,-500.0,0.00038904,120]
[336502332,1724884995902,-500.0,0.00038904,120]
[336502333,1724884995943,-2892.3,0.00038904,120]
[336502334,1724884995980,-225.01842061,0.00038904,120]
[336502335,1724884996017,-261.36731343,0.00038904,120]
[336502336,1724884996054,-3739.18,0.00038904,120]
[336502337,1724884996090,-665.94,0.00038904,120]
[336502338,1724884996125,-929.68,0.00038904,120]
[336502339,1724884996162,-5978.47,0.00038904,120]
[336502340,1724884996199,-500.0,0.00038904,120]
[336502341,1724884996236,-1229.1,0.00038904,120]
[336502342,1724884996273,-1601.09,0.00038904,120]
[336502343,1724884996309,-500.0,0.00038904,120]
[336502344,1724884996347,-580.98,0.00038904,120]
[336502345,1724884996383,-615.75,0.00038904,120]
[336502346,1724884996419,-2004.08,0.00038904,120]
[336502347,1724884996455,-500.0,0.00038904,120]
[336502348,1724884996493,-3021.78,0.00038904,120]
[336502349,1724884996530,-970.13,0.00038904,120]
[336502350,1724884996577,-2899.52,0.00038904,120]
[336502351,1724884996616,-500.0,0.00038904,120]
[336502352,1724884996654,-500.0,0.00038904,120]
[336502353,1724884996691,-498.14637493,0.00038904,120]
[336502354,1724884996728,-500.0,0.00038904,120]
[336502355,1724884996766,-1984.75,0.00038904,120]
[336502356,1724884996806,-3119.96,0.00038904,120]
[336502357,1724884996842,-500.0,0.00038904,120]
[336502358,1724884996880,-500.0,0.00038904,120]
[336502359,1724884996917,-1122.0,0.00038904,120]
[336502360,1724884996955,-2199.85,0.00038904,120]
[336502361,1724884996991,-500.0,0.00038904,120]
[336502362,1724884997028,-1901.82,0.00038904,120]
[336502363,1724884997065,-500.0,0.00038904,120]
[336502364,1724884997102,-1482.11,0.00038904,120]
[336502365,1724884997139,-500.0,0.00038904,120]
[336502366,1724884997174,-500.0,0.00038904,120]
[336502367,1724884997212,-1306.77,0.00038904,120]
[336502368,1724884997254,-500.0,0.00038904,120]
[336502369,1724884997295,-698.0,0.00038904,120]
[336502370,1724884997334,-5110.27,0.00038904,120]
[336502371,1724884997375,-4405.55,0.00038904,120]
[336502372,1724884997412,-500.0,0.00038904,120]
[336502373,1724884997449,-623.17,0.00038904,120]
[336502374,1724884997489,-494.99878775,0.00038904,120]
[336502375,1724884997525,-1335.08,0.00038904,120]
[336502376,1724884997561,-756.9,0.00038904,120]
[336502377,1724884997595,-500.0,0.00038904,120]
[336502378,1724884997633,-1577.63,0.00038904,120]
[336502379,1724884997669,-846.34,0.00038904,120]
[336502380,1724884997711,-500.0,0.00038904,120]
[336502381,1724884997750,-500.0,0.00038904,120]
[336502382,1724884997791,-500.0,0.00038904,120]
[336502383,1724884997829,-639.67,0.00038904,120]
[336502384,1724884997867,-714.35,0.00038904,120]
[336502385,1724884997906,-500.0,0.00038904,120]
[336502386,1724884997944,-500.0,0.00038904,120]
[336502387,1724884997983,-2503.52,0.00038904,120]
[336502388,1724884998020,-1019.48,0.00038904,120]
[336502389,1724884998065,-574.01,0.00038904,120]
[336502390,1724884998109,-1905.76,0.00038904,120]
[336502391,1724884998152,-500.0,0.00038904,120]
[336502392,1724884998194,-500.0,0.00038904,120]
[336502393,1724884998230,-438.63477178,0.00038904,120]
[336502394,1724884998267,-500.0,0.00038904,120]
[336502395,1724884998306,-508.6978663,0.00038904,120]